{"text_format":"1","workbook":"xlsx","n_sheets":7,"sheets":["Введение","I. (А)","II. (К)","III. (О)","IV. (З)","Обработка результатов","Печать"],"not_rendered":{"charts":0,"images":0,"macros":1,"external_links":0,"defined_names":0,"comments":0,"pivot_tables":0},"unopened":[],"bounds":{"document_bytes":16777216,"sheet_cells":100000,"rows_first":2000,"rows_last":500,"rows_between":2000,"halvings":0,"cell_chars":16384,"cell_head_chars":4096},"cells_cut":0,"cells_raw":0,"read":"whole","date_system":"1900"}

{"sheet":"Введение","index":0,"n_rows":6,"n_cols":1,"rows_kept":6,"cut":false,"hidden":false,"merged":[[5,0,21,14],[0,0,0,2],[0,3,0,8],[1,0,1,2],[1,3,1,8],[2,0,2,2],[2,3,2,8]]}
["Фамилия, имя"]
["Возраст"]
["Класс"]
[]
[]
["Выполнение этой методики требует интенсивной умственной работы в течение всего урока. Поэтому нежелательно проводить ее на первом и последних уроках, а также в те дни, когда запланированы контрольные работы. Методика предназначена для определения усвоения ряда понятий школьной программы, сформированности основных мыслительных процессов и развития вербального интеллекта учащихся 8–9-х классов. Она состоит из четырех серий заданий, каждая из которых выявляет уровень развития основных мыслительных операций (установление аналогий, классификация, обобщение, поиск закономерностей) на материале физико-математического, естественнонаучного, общественного и гуманитарного предметного цикла. Задания четвертой серии направлены на изучение способности к анализу и синтезу знаковой информации.\n\nМетодика «Эрудит» может использоваться для оценки успешности обучения различных групп учащихся и эффективности различных программ и методов обучения.\n\nРабота над тестом занимает один урок. Если нет возможности рассадить ребят по одному, психолог должен внимательно следить, чтобы ребята не списывали друг у друга. У каждого школьника на парте должен быть бланк ответов и лист с заданиями."]

{"sheet":"I. (А)","index":1,"n_rows":36,"n_cols":41,"rows_kept":36,"cut":false,"hidden":false,"merged":[[10,14,10,18],[9,14,9,18],[8,14,8,18],[8,1,8,13],[9,1,9,13],[10,1,10,13],[14,1,14,13],[15,1,15,13],[16,14,16,18],[17,14,17,18],[11,1,11,13],[11,14,11,18],[12,1,12,13],[12,14,12,18],[13,1,13,13],[13,14,13,18],[21,14,21,18],[22,14,22,18],[23,14,23,18],[14,14,14,18],[15,14,15,18],[19,1,19,13],[20,1,20,13],[18,14,18,18],[19,14,19,18],[20,14,20,18],[27,1,27,13],[0,0,6,18],[7,0,7,18],[21,1,21,13],[22,1,22,13],[23,1,23,13],[24,1,24,13],[25,1,25,13],[26,1,26,13],[24,14,24,18],[25,14,25,18],[26,14,26,18],[27,14,27,18],[16,1,16,13],[17,1,17,13],[18,1,18,13]]}
[" Даны три слова. Первое и второе слово связаны по смыслу. Из четырех слов выберите то, которое связано по смыслу с третьим так, как первое со вторым. В бланке рядом с номером задания запишите его букву. Пример: летчик – самолет = машинист –? Варианты: а) пассажир; б) поезд; в) вагон; г) вокзал. Летчик управляет самолетом, машинист – поездом. Правильный ответ – б."]
[]
[]
[]
[]
[]
[null,null,null,null,null,null,null,null,null,null,null,null,null,null,null,null,null,null,null,null,null,null,null,null,null,null,null,null,null,null,null,1,null,null,null,7,null,null,13,null,19]
[null,null,null,null,null,null,null,null,null,null,null,null,null,null,null,null,null,null,null,null,null,null,null,null,null,null,null,null,null,null,null,"а) рабовладельческий строй; ",null,null,null,"а) заголовок; ",null,null,"а) шишка; ",null,"а) инерция; "]
[1,"Рабовладельцы – капиталисты = рабы – …",null,null,null,null,null,null,null,null,null,null,null,null,null,null,null,null,null,null,null,null,null,null,{"$f":"IF(O9=AF10,1,0)","v":0},null,null,null,null,null,null,"б) буржуазия; ",null,null,null,"б) введение; ",null,null,"б) семя; ",null,"б) покой; "]
[2,"Богатство – бедность = крепостная зависимость – …",null,null,null,null,null,null,null,null,null,null,null,null,null,null,null,null,null,null,null,null,null,null,{"$f":"IF(O10=AF14,1,0)","v":0},null,null,null,null,null,null,"в) наёмные рабочие;",null,null,null,"в) кульминация; ",null,null,"в) растение; ",null,"в) скорость; "]
[3,"Первобытный строй – рабовладельческий строй = рабовладельческий строй – …",null,null,null,null,null,null,null,null,null,null,null,null,null,null,null,null,null,null,null,null,null,null,{"$f":"IF(O11=AF21,1,0)","v":0},null,null,null,null,null,null,"г) пленные.",null,null,null,"г) эпилог.",null,null,"г) ель.",null,"г) взаимодействие."]
[4,"Роза – цветок = врач – …",null,null,null,null,null,null,null,null,null,null,null,null,null,null,null,null,null,null,null,null,null,null,{"$f":"IF(O12=AF26,1,0)","v":0},null,null,null,null,null,null,"2",null,null,null,"8",null,null,"14",null,"20"]
[5,"Война – смерть = частная собственность – …",null,null,null,null,null,null,null,null,null,null,null,null,null,null,null,null,null,null,null,null,null,null,{"$f":"IF(O13=AF30,1,0)","v":0},null,null,null,null,null,null,"а) крепостные крестьяне;",null,null,null,"а) поэма; ",null,null,"а) деление; ",null,"а) разность; "]
[6,"Стихотворение – поэзия = рассказ – …",null,null,null,null,null,null,null,null,null,null,null,null,null,null,null,null,null,null,null,null,null,null,{"$f":"IF(O14=AF33,1,0)","v":0},null,null,null,null,null,null,"б) личная свобода;",null,null,null,"б) рифма; ",null,null,"б) хромосома; ",null,"б) делитель; "]
[7,"Старт – финиш = пролог – …",null,null,null,null,null,null,null,null,null,null,null,null,null,null,null,null,null,null,null,null,null,null,{"$f":"IF(O15=AJ11,1,0)","v":0},null,null,null,null,null,null,"в) неравенство;",null,null,null,"в) строфа; ",null,null,"в) ядро; ",null,"в) произведение; "]
[8,"Роман – глава = стихотворение – …",null,null,null,null,null,null,null,null,null,null,null,null,null,null,null,null,null,null,null,null,null,null,{"$f":"IF(O16=AJ15,1,0)","v":0},null,null,null,null,null,null,"г) частная собственность.",null,null,null,"г) ритм.",null,null,"г) фермент.",null,"г) умножение."]
[9,"Числительное – количество = глагол – …",null,null,null,null,null,null,null,null,null,null,null,null,null,null,null,null,null,null,null,null,null,null,{"$f":"IF(O17=AJ19,1,0)","v":0},null,null,null,null,null,null,"3",null,null,null,"9",null,null,"15"]
[10,"Глагол – спрягать = существительное – …",null,null,null,null,null,null,null,null,null,null,null,null,null,null,null,null,null,null,null,null,null,null,{"$f":"IF(O18=AJ26,1,0)","v":0},null,null,null,null,null,null,"а) социалистический строй; ",null,null,null,"а) спряжение; ",null,null,"а) ясная погода; "]
[11,"Колумб – путешественник = землетрясение – …",null,null,null,null,null,null,null,null,null,null,null,null,null,null,null,null,null,null,null,null,null,null,{"$f":"IF(O19=AJ28,1,0)","v":0},null,null,null,null,null,null,"б) капиталистический строй; ",null,null,null,"б) действие; ",null,null,"б) циклон; "]
[12,"Север – юг = осадки – …",null,null,null,null,null,null,null,null,null,null,null,null,null,null,null,null,null,null,null,null,null,null,{"$f":"IF(O20=AJ36,1,0)","v":0},null,null,null,null,null,null,"в) демократическое правление; ",null,null,null,"в) причастие; ",null,null,"в) гроза; "]
[13,"Папоротник – спора = сосна – …",null,null,null,null,null,null,null,null,null,null,null,null,null,null,null,null,null,null,null,null,null,null,{"$f":"IF(O21=AM9,1,0)","v":0},null,null,null,null,null,null,"г) феодальный строй.",null,null,null,"г) часть речи.",null,null,"г) влажность."]
[14,"Растение – стебель = клетка – …",null,null,null,null,null,null,null,null,null,null,null,null,null,null,null,null,null,null,null,null,null,null,{"$f":"IF(O22=AM15,1,0)","v":0},null,null,null,null,null,null,"4",null,null,null,"10",null,null,"16"]
[15,"Понижение атмосферного давления – осадки = антициклон – …",null,null,null,null,null,null,null,null,null,null,null,null,null,null,null,null,null,null,null,null,null,null,{"$f":"IF(O23=AM18,1,0)","v":0},null,null,null,null,null,null,"а) занятие; ",null,null,null,"а) изменять; ",null,null,"а) жидкость; "]
[16,"Фигура - треугольник = состояние вещества – …",null,null,null,null,null,null,null,null,null,null,null,null,null,null,null,null,null,null,null,null,null,null,{"$f":"IF(O24=AM23,1,0)","v":0},null,null,null,null,null,null,"б) должность; ",null,null,null,"б) образовывать; ",null,null,"б) движение; "]
[17,"Прямоугольник – плоскость = куб – …",null,null,null,null,null,null,null,null,null,null,null,null,null,null,null,null,null,null,null,null,null,null,{"$f":"IF(O25=AM31,1,0)","v":0},null,null,null,null,null,null,"в) специальность; ",null,null,null,"в) употреблять; ",null,null,"в) температура; "]
[18,"Диаметр – радиус = окружность – …",null,null,null,null,null,null,null,null,null,null,null,null,null,null,null,null,null,null,null,null,null,null,{"$f":"IF(O26=AM33,1,0)","v":0},null,null,null,null,null,null,"г) профессия.",null,null,null,"г) склонять.",null,null,"г) вода."]
[19,"Холодно – горячо = движение – …",null,null,null,null,null,null,null,null,null,null,null,null,null,null,null,null,null,null,null,null,null,null,{"$f":"IF(O27=AO9,1,0)","v":0},null,null,null,null,null,null,"5",null,null,null,"11",null,null,"17"]
[20,"Слагаемые – сумма = множители – …",null,null,null,null,null,null,null,null,null,null,null,null,null,null,null,null,null,null,null,null,null,null,{"$f":"IF(O28=AO15,1,0)","v":0},null,null,null,null,null,null,"а) феодализм; ",null,null,null,"а) природное явление; ",null,null,"а) сторона; "]
[null,null,null,null,null,null,null,null,null,null,null,null,null,null,null,null,null,null,null,null,null,null,null,null,null,null,null,null,null,null,null,"б) капитализм; ",null,null,null,"б) образование гор; ",null,null,"б) ребро; "]
[null,null,null,null,null,null,null,null,null,null,null,null,null,null,null,null,null,null,null,null,null,null,null,null,null,null,null,null,null,null,null,"в) неравенство; ",null,null,null,"в) извержение; ",null,null,"в) высота; "]
[null,null,null,null,null,null,null,null,null,null,null,null,null,null,null,null,null,null,null,null,null,null,null,null,null,null,null,null,null,null,null,"г) рабы.",null,null,null,"г) жертвы.",null,null,"г) объем."]
[null,null,null,null,null,null,null,null,null,null,null,null,null,null,null,null,null,null,null,null,null,null,null,null,null,null,null,null,null,null,null,"6",null,null,null,"12",null,null,"18"]
[null,null,null,null,null,null,null,null,null,null,null,null,null,null,null,null,null,null,null,null,null,null,null,null,null,null,null,null,null,null,null,"а) проза; ",null,null,null,"а) пустыня; ",null,null,"а) дуга; "]
[null,null,null,null,null,null,null,null,null,null,null,null,null,null,null,null,null,null,null,null,null,null,null,null,null,null,null,null,null,null,null,"б) писатель; ",null,null,null,"б) полюс; ",null,null,"б) сегмент; "]
[null,null,null,null,null,null,null,null,null,null,null,null,null,null,null,null,null,null,null,null,null,null,null,null,null,null,null,null,null,null,null,"в) повесть; ",null,null,null,"в) дождь; ",null,null,"в) отрезок; "]
[null,null,null,null,null,null,null,null,null,null,null,null,null,null,null,null,null,null,null,null,null,null,null,null,null,null,null,null,null,null,null,"г) предложение.",null,null,null,"г) засуха.",null,null,"г) круг."]

{"sheet":"II. (К)","index":2,"n_rows":36,"n_cols":41,"rows_kept":36,"cut":false,"hidden":false,"merged":[[8,1,8,13],[8,14,8,18],[14,1,14,13],[14,14,14,18],[9,1,9,13],[9,14,9,18],[10,1,10,13],[10,14,10,18],[11,1,11,13],[11,14,11,18],[18,14,18,18],[19,1,19,13],[19,14,19,18],[0,0,6,18],[20,1,20,13],[20,14,20,18],[15,1,15,13],[15,14,15,18],[16,1,16,13],[16,14,16,18],[17,1,17,13],[17,14,17,18],[12,1,12,13],[12,14,12,18],[13,1,13,13],[13,14,13,18],[7,0,7,18],[27,1,27,13],[27,14,27,18],[24,1,24,13],[24,14,24,18],[25,1,25,13],[25,14,25,18],[26,1,26,13],[26,14,26,18],[21,1,21,13],[21,14,21,18],[22,1,22,13],[22,14,22,18],[23,1,23,13],[23,14,23,18],[18,1,18,13]]}
["Даны четыре слова, три из которых объединены общим признаком. Найдите слово, которое не имеет этого признака, и выберите его из списка. Пример: а) корова; б) лошадь; в) собака; г) волк. Три слова обозначают домашних животных, а четвертое – дикого. Значит, правильный ответ – г) волк."]
[]
[]
[]
[]
[]
[null,null,null,null,null,null,null,null,null,null,null,null,null,null,null,null,null,null,null,null,null,null,null,null,null,null,null,null,null,null,null,21,null,null,null,27,null,null,33,null,39]
[null,null,null,null,null,null,null,null,null,null,null,null,null,null,null,null,null,null,null,null,null,null,null,null,null,null,null,null,null,null,null,"а) рабовладелец; ",null,null,null,"а) пословица; ",null,null,"а) Линней; ",null,"а) скорость; "]
[21,"а) рабовладелец; б) раб; в) крестьянин; г) рабочий.",null,null,null,null,null,null,null,null,null,null,null,null,null,null,null,null,null,null,null,null,null,null,{"$f":"IF(O9=AF8,1,0)","v":0},null,null,null,null,null,null,"б) раб; ",null,null,null,"б) стихотворение; ",null,null,"б) Павлов; ",null,"б) колебание; "]
[22,"а) социология; б) психология; в) педагогика; г) техника.",null,null,null,null,null,null,null,null,null,null,null,null,null,null,null,null,null,null,null,null,null,null,{"$f":"IF(O10=AF16,1,0)","v":0},null,null,null,null,null,null,"в) крестьянин; ",null,null,null,"в) поэма; ",null,null,"в) Микоян; ",null,"в) вес; "]
[23,"а) Кутузов; б) Суворов; в) Ушаков; г) Пирогов.",null,null,null,null,null,null,null,null,null,null,null,null,null,null,null,null,null,null,null,null,null,null,{"$f":"IF(O11=AF21,1,0)","v":0},null,null,null,null,null,null,"г) рабочий.",null,null,null,"г) рассказ.",null,null,"г) Дарвин.",null,"г) плотность."]
[24,"а) император; б) дворянин; в) царь; г) вождь.",null,null,null,null,null,null,null,null,null,null,null,null,null,null,null,null,null,null,null,null,null,null,{"$f":"IF(O12=AF24,1,0)","v":0},null,null,null,null,null,null,22,null,null,null,28,null,null,34,null,40]
[25,"а) ООН; б) НАТО; в) ОБСЕ; г) АОЗТ.",null,null,null,null,null,null,null,null,null,null,null,null,null,null,null,null,null,null,null,null,null,null,{"$f":"IF(O13=AF31,1,0)","v":0},null,null,null,null,null,null,"а) социология; ",null,null,null,"а) Ахматова; ",null,null,"а) аорта; ",null,"а) круг; "]
[26,"а) предлог; б) корень; в) суффикс; г) окончание.",null,null,null,null,null,null,null,null,null,null,null,null,null,null,null,null,null,null,null,null,null,null,{"$f":"IF(O14=AF33,1,0)","v":0},null,null,null,null,null,null,"б) психология; ",null,null,null,"б) Блок; ",null,null,"б) вена; ",null,"б) ромб; "]
[27,"а) пословица; б) стихотворение; в) поэма; г) рассказ.",null,null,null,null,null,null,null,null,null,null,null,null,null,null,null,null,null,null,null,null,null,null,{"$f":"IF(O15=AJ8,1,0)","v":0},null,null,null,null,null,null,"в) педагогика; ",null,null,null,"в) Васнецов; ",null,null,"в) сердце; ",null,"в) прямоугольник; "]
[28,"а) Ахматова; б) Блок; в) Васнецов; г) Гумилев.",null,null,null,null,null,null,null,null,null,null,null,null,null,null,null,null,null,null,null,null,null,null,{"$f":"IF(O16=AJ15,1,0)","v":0},null,null,null,null,null,null,"г) техника.",null,null,null,"г) Гумилев.",null,null,"г) артерия.",null,"г) треугольник."]
[29,"а) пролог; б) сюжет; в) развязка; г) эпилог.",null,null,null,null,null,null,null,null,null,null,null,null,null,null,null,null,null,null,null,null,null,null,{"$f":"IF(O17=AJ19,1,0)","v":0},null,null,null,null,null,null,23,null,null,null,29,null,null,35]
[30,"а) описание; б) сравнение; в) характеристика; г) сказание.",null,null,null,null,null,null,null,null,null,null,null,null,null,null,null,null,null,null,null,null,null,null,{"$f":"IF(O18=AJ26,1,0)","v":0},null,null,null,null,null,null,"а) Кутузов; ",null,null,null,"а) пролог; ",null,null,"а) углекислый газ; "]
[31,"а) барометр; б) азимут; в) термометр; г) компас.",null,null,null,null,null,null,null,null,null,null,null,null,null,null,null,null,null,null,null,null,null,null,{"$f":"IF(O19=AJ34,1,0)","v":0},null,null,null,null,null,null,"б) Суворов; ",null,null,null,"б) сюжет; ",null,null,"б) свет; "]
[32,"а) цитоплазма; б) питание; в) рост; г) раздражимость.",null,null,null,null,null,null,null,null,null,null,null,null,null,null,null,null,null,null,null,null,null,null,{"$f":"IF(O20=AJ33,1,0)","v":0},null,null,null,null,null,null,"в) Ушаков; ",null,null,null,"в) развязка; ",null,null,"в) вода; "]
[33,"а) Линней; б) Павлов; в) Микоян; г) Дарвин.",null,null,null,null,null,null,null,null,null,null,null,null,null,null,null,null,null,null,null,null,null,null,{"$f":"IF(O21=AM10,1,0)","v":0},null,null,null,null,null,null,"г) Пирогов.",null,null,null,"г) эпилог.",null,null,"г) крахмал."]
[34,"а) аорта; б) вена; в) сердце; г) артерия.",null,null,null,null,null,null,null,null,null,null,null,null,null,null,null,null,null,null,null,null,null,null,{"$f":"IF(O22=AM15,1,0)","v":0},null,null,null,null,null,null,24,null,null,null,30,null,null,36]
[35,"а) углекислый газ; б) свет; в) вода; г) крахмал.",null,null,null,null,null,null,null,null,null,null,null,null,null,null,null,null,null,null,null,null,null,null,{"$f":"IF(O23=AM21,1,0)","v":0},null,null,null,null,null,null,"а) император; ",null,null,null,"а) описание; ",null,null,"а) парабола; "]
[36,"а) парабола; б) гипербола; в) ломаная; г) прямая.",null,null,null,null,null,null,null,null,null,null,null,null,null,null,null,null,null,null,null,null,null,null,{"$f":"IF(O24=AM25,1,0)","v":0},null,null,null,null,null,null,"б) дворянин; ",null,null,null,"б) сравнение; ",null,null,"б) гипербола; "]
[37,"а) Сахаров; б) Алферов; в) Ландау; г) Пастернак.",null,null,null,null,null,null,null,null,null,null,null,null,null,null,null,null,null,null,null,null,null,null,{"$f":"IF(O25=AM31,1,0)","v":0},null,null,null,null,null,null,"в) царь; ",null,null,null,"в) характеристика; ",null,null,"в) ломаная; "]
[38,"а) длина; б) метр; в) масса; г) объём.",null,null,null,null,null,null,null,null,null,null,null,null,null,null,null,null,null,null,null,null,null,null,{"$f":"IF(O26=AM34,1,0)","v":0},null,null,null,null,null,null,"г) вождь.",null,null,null,"г) сказание.",null,null,"г) прямая."]
[39,"а) скорость; б) колебание; в) вес; г) плотность.",null,null,null,null,null,null,null,null,null,null,null,null,null,null,null,null,null,null,null,null,null,null,{"$f":"IF(O27=AO9,1,0)","v":0},null,null,null,null,null,null,25,null,null,null,31,null,null,37]
[40,"а) круг; б) ромб; в) прямоугольник; г) треугольник.",null,null,null,null,null,null,null,null,null,null,null,null,null,null,null,null,null,null,null,null,null,null,{"$f":"IF(O28=AO13,1,0)","v":0},null,null,null,null,null,null,"а) ООН; ",null,null,null,"а) барометр; ",null,null,"а) Сахаров; "]
[null,null,null,null,null,null,null,null,null,null,null,null,null,null,null,null,null,null,null,null,null,null,null,null,null,null,null,null,null,null,null,"б) НАТО; ",null,null,null,"б) азимут; ",null,null,"б) Алферов; "]
[null,null,null,null,null,null,null,null,null,null,null,null,null,null,null,null,null,null,null,null,null,null,null,null,null,null,null,null,null,null,null,"в) ОБСЕ; ",null,null,null,"в) термометр; ",null,null,"в) Ландау; "]
[null,null,null,null,null,null,null,null,null,null,null,null,null,null,null,null,null,null,null,null,null,null,null,null,null,null,null,null,null,null,null,"г) АОЗТ.",null,null,null,"г) компас.",null,null,"г) Пастернак."]
[null,null,null,null,null,null,null,null,null,null,null,null,null,null,null,null,null,null,null,null,null,null,null,null,null,null,null,null,null,null,null,26,null,null,null,32,null,null,38]
[null,null,null,null,null,null,null,null,null,null,null,null,null,null,null,null,null,null,null,null,null,null,null,null,null,null,null,null,null,null,null,"а) предлог; ",null,null,null,"а) цитоплазма; ",null,null,"а) длина; "]
[null,null,null,null,null,null,null,null,null,null,null,null,null,null,null,null,null,null,null,null,null,null,null,null,null,null,null,null,null,null,null,"б) корень; ",null,null,null,"б) питание; ",null,null,"б) метр; "]
[null,null,null,null,null,null,null,null,null,null,null,null,null,null,null,null,null,null,null,null,null,null,null,null,null,null,null,null,null,null,null,"в) суффикс; ",null,null,null,"в) рост; ",null,null,"в) масса; "]
[null,null,null,null,null,null,null,null,null,null,null,null,null,null,null,null,null,null,null,null,null,null,null,null,null,null,null,null,null,null,null,"г) окончание.",null,null,null,"г) раздражимость.",null,null,"г) объём."]

{"sheet":"III. (О)","index":3,"n_rows":36,"n_cols":41,"rows_kept":36,"cut":false,"hidden":false,"merged":[[10,1,10,13],[10,14,10,18],[0,0,6,18],[8,1,8,13],[8,14,8,18],[9,1,9,13],[9,14,9,18],[11,1,11,13],[11,14,11,18],[12,1,12,13],[12,14,12,18],[13,1,13,13],[13,14,13,18],[14,1,14,13],[14,14,14,18],[15,1,15,13],[15,14,15,18],[16,1,16,13],[16,14,16,18],[22,14,22,18],[17,1,17,13],[17,14,17,18],[18,1,18,13],[18,14,18,18],[19,1,19,13],[19,14,19,18],[26,1,26,13],[26,14,26,18],[27,1,27,13],[27,14,27,18],[7,0,7,18],[23,1,23,13],[23,14,23,18],[24,1,24,13],[24,14,24,18],[25,1,25,13],[25,14,25,18],[20,1,20,13],[20,14,20,18],[21,1,21,13],[21,14,21,18],[22,1,22,13]]}
["Даны пары слов. Выберите из четырех вариантов тот, который выражает самые существенные для обоих слов признаки. Пример: сосна – ель. Варианты ответов: а) растения, б) природа, в) деревья, г) хвойные деревья. Правильный ответ – г, потому что он точнее всего отражает существенные свойства этих понятий."]
[]
[]
[]
[]
[]
[null,null,null,null,null,null,null,null,null,null,null,null,null,null,null,null,null,null,null,null,null,null,null,null,null,null,null,null,null,null,null,41,null,null,null,47,null,null,53,null,59]
[null,null,null,null,null,null,null,null,null,null,null,null,null,null,null,null,null,null,null,null,null,null,null,null,null,null,null,null,null,null,null,"а) устройство общества; ",null,null,null,"а) литературный прием; ",null,null,"а) природные явления; ",null,"а) электричество; "]
[41,"Феодализм – капитализм:",null,null,null,null,null,null,null,null,null,null,null,null,null,null,null,null,null,null,null,null,null,null,{"$f":"IF(O9=AF11,1,0)","v":0},null,null,null,null,null,null,"б) формы правления; ",null,null,null,"б) элементы литературного произведения; ",null,null,"б) дождь; ",null,"б) физические термины; "]
[42,"Радио – телевидение:",null,null,null,null,null,null,null,null,null,null,null,null,null,null,null,null,null,null,null,null,null,null,{"$f":"IF(O10=AF14,1,0)","v":0},null,null,null,null,null,null,"в) неравенство; ",null,null,null,"в) художественные средства; ",null,null,"в) погода; ",null,"в) единицы измерения электрического тока; "]
[43,"Наука – искусство:",null,null,null,null,null,null,null,null,null,null,null,null,null,null,null,null,null,null,null,null,null,null,{"$f":"IF(O11=AF21,1,0)","v":0},null,null,null,null,null,null,"г) общественный строй.",null,null,null,"г) способы изложения.",null,null,"г) атмосферные явления.",null,"г) ученые-физики."]
[44,"Школа – институт:",null,null,null,null,null,null,null,null,null,null,null,null,null,null,null,null,null,null,null,null,null,null,{"$f":"IF(O12=AF25,1,0)","v":0},null,null,null,null,null,null,42,null,null,null,48,null,null,54,null,60]
[45,"Монархия – демократия:",null,null,null,null,null,null,null,null,null,null,null,null,null,null,null,null,null,null,null,null,null,null,{"$f":"IF(O13=AF28,1,0)","v":0},null,null,null,null,null,null,"а) способы передачи информации; ",null,null,null,"а) главные члены предложения; ",null,null,"а) биологические вещества; ",null,"а) квадратичные функции; "]
[46,"Сказка – былина:",null,null,null,null,null,null,null,null,null,null,null,null,null,null,null,null,null,null,null,null,null,null,{"$f":"IF(O14=AF35,1,0)","v":0},null,null,null,null,null,null,"б) средства массовой информации; ",null,null,null,"б) части речи; ",null,null,"б) микроэлементы; ",null,"б) тригонометрические функции; "]
[47,"Пролог – кульминация:",null,null,null,null,null,null,null,null,null,null,null,null,null,null,null,null,null,null,null,null,null,null,{"$f":"IF(O15=AJ9,1,0)","v":0},null,null,null,null,null,null,"в) достижения науки; ",null,null,null,"в) второстепенные члены предложения; ",null,null,"в) органические вещества; ",null,"в) четные функции; "]
[48,"Глагол – прилагательное:",null,null,null,null,null,null,null,null,null,null,null,null,null,null,null,null,null,null,null,null,null,null,{"$f":"IF(O16=AJ14,1,0)","v":0},null,null,null,null,null,null,"г) формы воздействия на людей.",null,null,null,"г) лингвистические термины.",null,null,"г) химический состав тела.",null,"г) нечетные функции."]
[49,"Классицизм – романтизм:",null,null,null,null,null,null,null,null,null,null,null,null,null,null,null,null,null,null,null,null,null,null,{"$f":"IF(O17=AJ21,1,0)","v":0},null,null,null,null,null,null,43,null,null,null,49,null,null,55]
[50,"Определение – обстоятельство:",null,null,null,null,null,null,null,null,null,null,null,null,null,null,null,null,null,null,null,null,null,null,{"$f":"IF(O18=AJ23,1,0)","v":0},null,null,null,null,null,null,"а) виды творчества; ",null,null,null,"а) стиль; ",null,null,"а) гидроэлектростанции; "]
[51,"Азия – Африка:",null,null,null,null,null,null,null,null,null,null,null,null,null,null,null,null,null,null,null,null,null,null,{"$f":"IF(O19=AJ31,1,0)","v":0},null,null,null,null,null,null,"б) интеллект; ",null,null,null,"б) жанры; ",null,null,"б) водные сооружения; "]
[52,"Сердце – артерия:",null,null,null,null,null,null,null,null,null,null,null,null,null,null,null,null,null,null,null,null,null,null,{"$f":"IF(O20=AJ33,1,0)","v":0},null,null,null,null,null,null,"в) культура; ",null,null,null,"в) художественный стиль; ",null,null,"в) водоемы; "]
[53,"Облачность – осадки:",null,null,null,null,null,null,null,null,null,null,null,null,null,null,null,null,null,null,null,null,null,null,{"$f":"IF(O21=AM11,1,0)","v":0},null,null,null,null,null,null,"г) области человеческой деятельности.",null,null,null,"г) направления в искусстве.",null,null,"г) водные преграды."]
[54,"Жиры – белки:",null,null,null,null,null,null,null,null,null,null,null,null,null,null,null,null,null,null,null,null,null,null,{"$f":"IF(O22=AM15,1,0)","v":0},null,null,null,null,null,null,44,null,null,null,50,null,null,56]
[55,"Канал – плотина:",null,null,null,null,null,null,null,null,null,null,null,null,null,null,null,null,null,null,null,null,null,null,{"$f":"IF(O23=AM19,1,0)","v":0},null,null,null,null,null,null,"а) образование; ",null,null,null,"а) члены предложения; ",null,null,"а) математические термины; "]
[56,"Сумма – произведение:",null,null,null,null,null,null,null,null,null,null,null,null,null,null,null,null,null,null,null,null,null,null,{"$f":"IF(O24=AM25,1,0)","v":0},null,null,null,null,null,null,"б) здания; ",null,null,null,"б) части речи; ",null,null,"б) вычисления; "]
[57,"Газ – жидкость:",null,null,null,null,null,null,null,null,null,null,null,null,null,null,null,null,null,null,null,null,null,null,{"$f":"IF(O25=AM31,1,0)","v":0},null,null,null,null,null,null,"в) учебные заведения; ",null,null,null,"в) виды предложений; ",null,null,"в) результаты математических действий; "]
[58,"Дифракция – интерференция:",null,null,null,null,null,null,null,null,null,null,null,null,null,null,null,null,null,null,null,null,null,null,{"$f":"IF(O26=AM33,1,0)","v":0},null,null,null,null,null,null,"г) способы получения знаний.",null,null,null,"г) уточняющие слова.",null,null,"г) результаты вычислений."]
[59,"Ампер – вольт:",null,null,null,null,null,null,null,null,null,null,null,null,null,null,null,null,null,null,null,null,null,null,{"$f":"IF(O27=AO10,1,0)","v":0},null,null,null,null,null,null,45,null,null,null,51,null,null,57]
[60,"Синус – косинус:",null,null,null,null,null,null,null,null,null,null,null,null,null,null,null,null,null,null,null,null,null,null,{"$f":"IF(O28=AO14,1,0)","v":0},null,null,null,null,null,null,"а) государственный строй; ",null,null,null,"а) страны; ",null,null,"а) молекулы; "]
[null,null,null,null,null,null,null,null,null,null,null,null,null,null,null,null,null,null,null,null,null,null,null,null,null,null,null,null,null,null,null,"б) формы правления; ",null,null,null,"б) континенты; ",null,null,"б) состояние; "]
[null,null,null,null,null,null,null,null,null,null,null,null,null,null,null,null,null,null,null,null,null,null,null,null,null,null,null,null,null,null,null,"в) правительство; ",null,null,null,"в) материки; ",null,null,"в) химическое вещество; "]
[null,null,null,null,null,null,null,null,null,null,null,null,null,null,null,null,null,null,null,null,null,null,null,null,null,null,null,null,null,null,null,"г) устройство общества.",null,null,null,"г) части света.",null,null,"г) агрегатное состояние вещества."]
[null,null,null,null,null,null,null,null,null,null,null,null,null,null,null,null,null,null,null,null,null,null,null,null,null,null,null,null,null,null,null,46,null,null,null,52,null,null,58]
[null,null,null,null,null,null,null,null,null,null,null,null,null,null,null,null,null,null,null,null,null,null,null,null,null,null,null,null,null,null,null,"а) литературный жанр; ",null,null,null,"а) органы кровообращения; ",null,null,"а) волновые явления; "]
[null,null,null,null,null,null,null,null,null,null,null,null,null,null,null,null,null,null,null,null,null,null,null,null,null,null,null,null,null,null,null,"б) выдумка; ",null,null,null,"б) анатомия; ",null,null,"б) характеристики световой волны; "]
[null,null,null,null,null,null,null,null,null,null,null,null,null,null,null,null,null,null,null,null,null,null,null,null,null,null,null,null,null,null,null,"в) устное народное творчество; ",null,null,null,"в) система кровообращения; ",null,null,"в) природные явления; "]
[null,null,null,null,null,null,null,null,null,null,null,null,null,null,null,null,null,null,null,null,null,null,null,null,null,null,null,null,null,null,null,"г) литературное произведение.",null,null,null,"г) органы тела.",null,null,"г) физические термины."]

{"sheet":"IV. (З)","index":4,"n_rows":28,"n_cols":27,"rows_kept":28,"cut":false,"hidden":false,"merged":[[0,0,6,18],[7,0,7,18],[8,1,8,13],[8,14,8,18],[9,1,9,13],[9,14,9,18],[10,1,10,13],[10,14,10,18],[11,1,11,13],[11,14,11,18],[12,1,12,13],[12,14,12,18],[13,1,13,13],[13,14,13,18],[14,1,14,13],[14,14,14,18],[15,1,15,13],[15,14,15,18],[16,1,16,13],[16,14,16,18],[17,1,17,13],[17,14,17,18],[18,1,18,13],[18,14,18,18],[19,1,19,13],[19,14,19,18],[20,1,20,13],[20,14,20,18],[21,1,21,13],[21,14,21,18],[22,1,22,13],[22,14,22,18],[23,1,23,13],[23,14,23,18],[24,1,24,13],[24,14,24,18],[25,1,25,13],[25,14,25,18],[26,1,26,13],[26,14,26,18],[27,1,27,13],[27,14,27,18]]}
["Числа в каждом ряду расположены по определённому правилу. Вы должны понять эту закономерность и записать в бланке ответов число, которое продолжает этот числовой ряд. В некоторых случаях для того, чтобы найти закономерность, необходимо мысленно выполнять арифметические действия."]
[]
[]
[]
[]
[]
[]
[]
[61,"6, 9, 12, 15, 18, 21, ...",null,null,null,null,null,null,null,null,null,null,null,null,null,null,null,null,null,null,null,null,null,null,null,null,{"$f":"IF(O9=24,1,0)","v":0}]
[62,"9, 1, 7, 1, 5, 1, ...",null,null,null,null,null,null,null,null,null,null,null,null,null,null,null,null,null,null,null,null,null,null,null,null,{"$f":"IF(O10=3,1,0)","v":0}]
[63,"2, 3 , 5, 6, 8, 9, ...",null,null,null,null,null,null,null,null,null,null,null,null,null,null,null,null,null,null,null,null,null,null,null,null,{"$f":"IF(O11=11,1,0)","v":0}]
[64,"10, 12, 9, 11, 8, 10, ...",null,null,null,null,null,null,null,null,null,null,null,null,null,null,null,null,null,null,null,null,null,null,null,null,{"$f":"IF(O12=7,1,0)","v":0}]
[65,"1, 3, 6, 8, 16, 18, ...",null,null,null,null,null,null,null,null,null,null,null,null,null,null,null,null,null,null,null,null,null,null,null,null,{"$f":"IF(O13=36,1,0)","v":0}]
[66,"3, 4, 6, 9, 13, 18, ...",null,null,null,null,null,null,null,null,null,null,null,null,null,null,null,null,null,null,null,null,null,null,null,null,{"$f":"IF(O14=24,1,0)","v":0}]
[67,"15, 13, 16, 12, 17, 11, ...",null,null,null,null,null,null,null,null,null,null,null,null,null,null,null,null,null,null,null,null,null,null,null,null,{"$f":"IF(O15=18,1,0)","v":0}]
[68,"1, 2 , 4, 8, 16, 32, ...",null,null,null,null,null,null,null,null,null,null,null,null,null,null,null,null,null,null,null,null,null,null,null,null,{"$f":"IF(O16=64,1,0)","v":0}]
[69,"1, 2, 5, 10, 17, 26, ...",null,null,null,null,null,null,null,null,null,null,null,null,null,null,null,null,null,null,null,null,null,null,null,null,{"$f":"IF(O17=37,1,0)","v":0}]
[70,"1, 4, 9, 16, 25, 36, ...",null,null,null,null,null,null,null,null,null,null,null,null,null,null,null,null,null,null,null,null,null,null,null,null,{"$f":"IF(O18=49,1,0)","v":0}]
[71,"128, 64, 32, 16, 8, 4, ...",null,null,null,null,null,null,null,null,null,null,null,null,null,null,null,null,null,null,null,null,null,null,null,null,{"$f":"IF(O19=2,1,0)","v":0}]
[72,"1, 2 , 6, 15, 31, 56, ...",null,null,null,null,null,null,null,null,null,null,null,null,null,null,null,null,null,null,null,null,null,null,null,null,{"$f":"IF(O20=92,1,0)","v":0}]
[73,"31, 24, 18, 13, 9, 6, ...",null,null,null,null,null,null,null,null,null,null,null,null,null,null,null,null,null,null,null,null,null,null,null,null,{"$f":"IF(O21=4,1,0)","v":0}]
[74,"255, 127, 63, 31, 15, 7, ...",null,null,null,null,null,null,null,null,null,null,null,null,null,null,null,null,null,null,null,null,null,null,null,null,{"$f":"IF(O22=3,1,0)","v":0}]
[75,"3, 4 , 8, 17, 33, 58, ...",null,null,null,null,null,null,null,null,null,null,null,null,null,null,null,null,null,null,null,null,null,null,null,null,{"$f":"IF(O23=94,1,0)","v":0}]
[76,"47, 39, 32, 26, 21, 17, ...",null,null,null,null,null,null,null,null,null,null,null,null,null,null,null,null,null,null,null,null,null,null,null,null,{"$f":"IF(O24=14,1,0)","v":0}]
[77,"174, 171, 57, 54, 18, 15, ...",null,null,null,null,null,null,null,null,null,null,null,null,null,null,null,null,null,null,null,null,null,null,null,null,{"$f":"IF(O25=5,1,0)","v":0}]
[78,"54, 19, 18, 14, 6, 9, ...",null,null,null,null,null,null,null,null,null,null,null,null,null,null,null,null,null,null,null,null,null,null,null,null,{"$f":"IF(O26=2,1,0)","v":0}]
[79,"301, 294, 49, 44, 11, 8, ...",null,null,null,null,null,null,null,null,null,null,null,null,null,null,null,null,null,null,null,null,null,null,null,null,{"$f":"IF(O27=4,1,0)","v":0}]
[80," 23, 46, 48, 96, 98, 196, ...",null,null,null,null,null,null,null,null,null,null,null,null,null,null,null,null,null,null,null,null,null,null,null,null,{"$f":"IF(O28=198,1,0)","v":0}]

{"sheet":"Обработка результатов","index":5,"n_rows":52,"n_cols":18,"rows_kept":52,"cut":false,"hidden":false,"merged":[[0,0,22,18],[25,10,25,17],[25,1,25,8],[51,10,52,17],[51,1,52,8],[43,10,43,17],[37,10,37,17],[31,10,31,17],[49,10,49,17],[31,1,31,6],[31,7,31,8],[37,1,37,6],[37,7,37,8],[43,1,43,6],[43,7,43,8],[49,1,49,6],[49,7,49,8]]}
["Обработку проводит сам учитель или психолог. Она заключается в подсчете правильных ответов и предполагает количественный и качественный анализ ответов. За каждый правильный ответ начисляется один балл. Качественный анализ результатов выявляет группы учащихся с разной степенью усвоения школьных понятий различных учебных циклов. В соответствии со структурой методики первые пять (1–5) строк бланка занимают вопросы общественных наук, следующие пять строк (6–10) – вопросы гуманитарных наук, с 11 по 15 – вопросы естественных наук, с 16 по 20 – физика и математика. Баллы (количество правильных ответов из 15 возможных) записываются в пустой клетке после названия цикла.\n\nСтепень сформированности основных мыслительных операций определяется подсчетом и сравнением количества правильных ответов по четырем сериям (1 – «Аналогии», 2 – «Классификация», 3 – «Обобщение», 4 – «Закономерности» – соответственно буквы «А», «К», «О», «З» внизу бланка). Баллы (количество правильных ответов из 20 возможных) записываются в пустых клетках нижней строки под каждой серией рядом с этими буквами. Общий балл (из 80 возможных) записывается в правом нижнем прямоугольнике. По результатам тестирования класс подразделяется на пять групп:\n\n1) наиболее успешные – 10% от общего числа испытуемых;\n2) близкие к успешным – 20% от общего числа испытуемых;\n3) средние по успешности – 40% от общего числа;\n4) мало успешные – 20 % от общего числа;\n5) наименее успешные – 10 % от общего числа испытуемых.\nК следующему, завершающему, уроку, вы должны вернуть ребятам обработанные бланки. Возвращая результаты, необходимо напомнить, что по отдельным методикам нельзя давать рекомендации о профиле обучения, тем более, что работа еще не закончена. Ни в коем случае нельзя зачитывать эти результаты вслух – во-первых, вы травмируете тех, у кого низкие результаты, во-вторых, теряете время."]
[]
[]
[]
[]
[]
[]
[]
[]
[]
[]
[]
[]
[]
[]
[]
[]
[]
[]
[]
[]
[]
[]
[]
[]
[null,"Бланк ответа",null,null,null,null,null,null,null,null,"Правильные ответы"]
[null,1,{"$f":"'I. (А)'!Y9","v":0},21,{"$f":"'II. (К)'!Y9","v":0},41,{"$f":"'III. (О)'!Y9","v":0},61,{"$f":"'IV. (З)'!AA9","v":0},null,1,"в",21,"а",41,"г",61,24]
[null,2,{"$f":"'I. (А)'!Y10","v":0},22,{"$f":"'II. (К)'!Y10","v":0},42,{"$f":"'III. (О)'!Y10","v":0},62,{"$f":"'IV. (З)'!AA10","v":0},null,2,"б",22,"г",42,"б",62,3]
[null,3,{"$f":"'I. (А)'!Y11","v":0},23,{"$f":"'II. (К)'!Y11","v":0},43,{"$f":"'III. (О)'!Y11","v":0},63,{"$f":"'IV. (З)'!AA11","v":0},null,3,"г",23,"г",43,"г",63,11]
[null,4,{"$f":"'I. (А)'!Y12","v":0},24,{"$f":"'II. (К)'!Y12","v":0},44,{"$f":"'III. (О)'!Y12","v":0},64,{"$f":"'IV. (З)'!AA12","v":0},null,4,"г",24,"б",44,"в",64,7]
[null,5,{"$f":"'I. (А)'!Y13","v":0},25,{"$f":"'II. (К)'!Y13","v":0},45,{"$f":"'III. (О)'!Y13","v":0},65,{"$f":"'IV. (З)'!AA13","v":0},null,5,"в",25,"г",45,"а",65,36]
[null,"Общественные науки",null,null,null,null,null,{"$f":"SUM(C27:C31,E27:E31,G27:G31)","v":0},null,null,"Общественные науки"]
[null,6,{"$f":"'I. (А)'!Y14","v":0},26,{"$f":"'II. (К)'!Y14","v":0},46,{"$f":"'III. (О)'!Y14","v":0},66,{"$f":"'IV. (З)'!AA14","v":0},null,6,"а",26,"а",46,"в",66,24]
[null,7,{"$f":"'I. (А)'!Y15","v":0},27,{"$f":"'II. (К)'!Y15","v":0},47,{"$f":"'III. (О)'!Y15","v":0},67,{"$f":"'IV. (З)'!AA15","v":0},null,7,"г",27,"а",47,"б",67,18]
[null,8,{"$f":"'I. (А)'!Y16","v":0},28,{"$f":"'II. (К)'!Y16","v":0},48,{"$f":"'III. (О)'!Y16","v":0},68,{"$f":"'IV. (З)'!AA16","v":0},null,8,"в",28,"в",48,"б",68,64]
[null,9,{"$f":"'I. (А)'!Y17","v":0},29,{"$f":"'II. (К)'!Y17","v":0},49,{"$f":"'III. (О)'!Y17","v":0},69,{"$f":"'IV. (З)'!AA17","v":0},null,9,"б",29,"б",49,"г",69,37]
[null,10,{"$f":"'I. (А)'!Y18","v":0},30,{"$f":"'II. (К)'!Y18","v":0},50,{"$f":"'III. (О)'!Y18","v":0},70,{"$f":"'IV. (З)'!AA18","v":0},null,10,"г",30,"г",50,"а",70,49]
[null,"Гуманитарные науки",null,null,null,null,null,{"$f":"SUM(C33:C37,E33:E37,G33:G37)","v":0},null,null,"Гуманитарные науки"]
[null,11,{"$f":"'I. (А)'!Y19","v":0},31,{"$f":"'II. (К)'!Y19","v":0},51,{"$f":"'III. (О)'!Y19","v":0},71,{"$f":"'IV. (З)'!AA19","v":0},null,11,"а",31,"б",51,"г",71,2]
[null,12,{"$f":"'I. (А)'!Y20","v":0},32,{"$f":"'II. (К)'!Y20","v":0},52,{"$f":"'III. (О)'!Y20","v":0},72,{"$f":"'IV. (З)'!AA20","v":0},null,12,"г",32,"а",52,"а",72,92]
[null,13,{"$f":"'I. (А)'!Y21","v":0},33,{"$f":"'II. (К)'!Y21","v":0},53,{"$f":"'III. (О)'!Y21","v":0},73,{"$f":"'IV. (З)'!AA21","v":0},null,13,"б",33,"в",53,"г",73,4]
[null,14,{"$f":"'I. (А)'!Y22","v":0},34,{"$f":"'II. (К)'!Y22","v":0},54,{"$f":"'III. (О)'!Y22","v":0},74,{"$f":"'IV. (З)'!AA22","v":0},null,14,"в",34,"в",54,"в",74,3]
[null,15,{"$f":"'I. (А)'!Y23","v":0},35,{"$f":"'II. (К)'!Y23","v":0},55,{"$f":"'III. (О)'!Y23","v":0},75,{"$f":"'IV. (З)'!AA23","v":0},null,15,"а",35,"г",55,"б",75,94]
[null,"Естественные науки",null,null,null,null,null,{"$f":"SUM(C39:C43,E39:E43,G39:G43)","v":0},null,null,"Естественные науки"]
[null,16,{"$f":"'I. (А)'!Y24","v":0},36,{"$f":"'II. (К)'!Y24","v":0},56,{"$f":"'III. (О)'!Y24","v":0},76,{"$f":"'IV. (З)'!AA23","v":0},null,16,"а",36,"в",56,"в",76,14]
[null,17,{"$f":"'I. (А)'!Y25","v":0},37,{"$f":"'II. (К)'!Y25","v":0},57,{"$f":"'III. (О)'!Y25","v":0},77,{"$f":"'IV. (З)'!AA24","v":0},null,17,"г",37,"г",57,"г",77,5]
[null,18,{"$f":"'I. (А)'!Y26","v":0},38,{"$f":"'II. (К)'!Y26","v":0},58,{"$f":"'III. (О)'!Y26","v":0},78,{"$f":"'IV. (З)'!AA25","v":0},null,18,"а",38,"б",58,"а",78,2]
[null,19,{"$f":"'I. (А)'!Y27","v":0},39,{"$f":"'II. (К)'!Y27","v":0},59,{"$f":"'III. (О)'!Y27","v":0},79,{"$f":"'IV. (З)'!AA26","v":0},null,19,"б",39,"б",59,"в",79,4]
[null,20,{"$f":"'I. (А)'!Y28","v":0},40,{"$f":"'II. (К)'!Y28","v":0},60,{"$f":"'III. (О)'!Y28","v":0},80,{"$f":"'IV. (З)'!AA27","v":0},null,20,"в",40,"а",60,"б",80,198]
[null,"Физика-математика",null,null,null,null,null,{"$f":"SUM(C45:C49,E45:E49,G45:G49)","v":0},null,null,"Физика-математика"]
[null,"А",{"$f":"SUM(C27:C31,C33:C37,C39:C43,C45:C49)","v":0},"К",{"$f":"SUM(E27:E31,E33:E37,E39:E43,E45:E49)","v":0},"О",{"$f":"SUM(G27:G31,G33:G37,G39:G43,G45:G49)","v":0},"З",{"$f":"SUM(I27:I31,I33:I37,I39:I43,I45:I49)","v":0},null,"А",null,"К",null,"О",null,"З"]
[null,{"$f":"SUM(C51,E51,G51,I51)","v":0}]

{"sheet":"Печать","index":6,"n_rows":14,"n_cols":8,"rows_kept":14,"cut":false,"hidden":false,"merged":[[5,0,5,4],[10,0,10,4],[0,0,0,7],[2,1,2,5],[3,1,3,5],[9,0,9,4],[6,0,6,4],[7,0,7,4],[8,0,8,4],[5,5,5,7],[6,5,6,7],[7,5,7,7],[8,5,8,7],[9,5,9,7],[10,5,10,7],[11,0,11,4],[12,0,12,4],[13,0,13,4],[11,5,11,7],[12,5,12,7],[13,5,13,7]]}
["Методика Эрудит"]
[]
["ФИО",{"$f":"PROPER(Введение!D1)","v":""},null,null,null,null,"Класс",{"$f":"Введение!D3","v":0}]
["Возраст",{"$f":"CONCATENATE(Введение!D2, \" лет\")","v":" лет"},null,null,null,null,"Дата",{"$f":"TODAY()","v":"2017-12-22"}]
[]
["Шкала",null,null,null,null,"Баллы"]
["Аналогии",null,null,null,null,{"$f":"'Обработка результатов'!C51","v":0}]
["Классификация",null,null,null,null,{"$f":"'Обработка результатов'!E51","v":0}]
["Обобщение",null,null,null,null,{"$f":"'Обработка результатов'!G51","v":0}]
["Закономерности",null,null,null,null,{"$f":"'Обработка результатов'!I51","v":0}]
["Общественные науки",null,null,null,null,{"$f":"'Обработка результатов'!H32","v":0}]
["Гуманитарные науки",null,null,null,null,{"$f":"'Обработка результатов'!H38","v":0}]
["Естественные науки",null,null,null,null,{"$f":"'Обработка результатов'!H44","v":0}]
["Физика-математика",null,null,null,null,{"$f":"'Обработка результатов'!H50","v":0}]